fUSD/lending_fUSD_20250616
["ID","MTS","AMOUNT","RATE_DAILY","PERIOD"]
[366127762,1750077061883,-1821.6497183,0.00016701,2]
[366127763,1750077061893,-190.17373055,0.00016701,2]
[366127764,1750077061903,-150.0,0.00016706,2]
[366127765,1750077061913,-150.0,0.00016711,2]
[366127766,1750077061923,-4815.72823704,0.00016712,2]
[366127767,1750077061933,-170.13564688,0.00016713,2]
[366127768,1750077061943,-151.0,0.00016713,2]
[366127769,1750077061953,-595.141465,0.00016713,2]
[366127770,1750077061965,-595.141465,0.00016713,2]
[366127771,1750077061975,-151.0,0.00016713,2]
[366127772,1750077061985,-151.0,0.00016713,2]
[366127773,1750077061994,-150.0,0.00016716,2]
[366127774,1750077062004,-150.0,0.00016718,2]
[366127775,1750077062014,-150.0,0.00016723,2]
[366127776,1750077062023,-150.0,0.00016724,2]
[366127777,1750077062033,-563.17877796,0.00016728,2]
[366127778,1750077062042,-586.299,0.00016728,2]
[366127779,1750077062052,-150.0,0.0001673,2]
[366127780,1750077062061,-150.0,0.0001673,2]
[366127781,1750077062071,-150.0,0.00016731,2]
[366127782,1750077062079,-150.0,0.00016732,2]
[366127783,1750077062089,-1000.0,0.00016732,2]
[366127784,1750077062098,-153.28367159,0.00016733,2]
[366127785,1750077062108,-150.0,0.00016734,2]
[366127786,1750077062117,-150.0,0.00016735,2]
[366127787,1750077062126,-150.0,0.00016738,2]
[366127788,1750077062135,-150.0,0.00016739,2]
[366127789,1750077062144,-150.0,0.0001674,2]
[366127790,1750077062154,-150.0,0.00016742,2]
[366127791,1750077062163,-150.0,0.00016751,2]
[366127792,1750077062172,-150.0,0.00016754,2]
[366127793,1750077062182,-150.0,0.00016755,2]
[366127794,1750077062191,-151.0,0.00016759,2]
[366127795,1750077062201,-151.0,0.00016759,2]
[366127796,1750077062211,-151.0,0.00016759,2]
[366127797,1750077062221,-151.0,0.00016759,2]
[366127798,1750077062230,-151.0,0.00016759,2]
[366127799,1750077062240,-690.022743,0.00016759,2]
[366127800,1750077062249,-690.022743,0.00016759,2]
[366127801,1750077062259,-150.0,0.00016759,2]
[366127802,1750077062269,-955.407299,0.00016759,2]
[366127803,1750077062279,-955.407299,0.00016759,2]
[366127804,1750077062288,-518.68661,0.00016759,2]
[366127805,1750077062298,-518.68661,0.00016759,2]
[366127806,1750077062308,-151.0,0.00016759,2]
[366127807,1750077062318,-151.0,0.00016759,2]
[366127808,1750077062327,-888.596646,0.00016759,2]
[366127809,1750077062337,-888.596646,0.00016759,2]
[366127810,1750077062346,-151.0,0.00016759,2]
[366127811,1750077062355,-151.0,0.00016759,2]
[366127812,1750077062365,-1866.73,0.00016759,2]
[366127813,1750077062375,-1004.51,0.00016759,2]
[366127814,1750077062384,-151.0,0.00016759,2]
[366127815,1750077062394,-151.0,0.00016759,2]
[366127816,1750077062403,-151.0,0.00016759,2]
[366127817,1750077062413,-651.536351,0.00016759,2]
[366127818,1750077062423,-205.426801,0.00016759,2]
[366127819,1750077062433,-651.536351,0.00016759,2]
[366127820,1750077062443,-151.0,0.00016759,2]
[366127821,1750077062453,-5807.43,0.00016759,2]
[366127822,1750077062464,-205.426801,0.00016759,2]
[366127823,1750077062474,-2669.31,0.00016759,2]
[366127824,1750077062484,-151.0,0.00016759,2]
[366127825,1750077062494,-1295.75,0.00016759,2]
[366127826,1750077062504,-790.86,0.00016759,2]
[366127827,1750077062513,-490.0,0.00016759,2]
[366127828,1750077062523,-16527.79,0.00016759,2]
[366127829,1750077062532,-3815.9,0.00016759,2]
[366127830,1750077062541,-1230.86,0.00016759,2]
[366127831,1750077062550,-1718.66,0.00016759,2]
[366127832,1750077062560,-2915.5,0.00016759,2]
[366127833,1750077062570,-207.214775,0.00016759,2]
[366127834,1750077062579,-2049.72,0.00016759,2]
[366127835,1750077062589,-1876.9,0.00016759,2]
[366127836,1750077062598,-1154.8,0.00016759,2]
[366127837,1750077062608,-4014.94,0.00016759,2]
[366127838,1750077062617,-150.0,0.0001676,2]
[366127839,1750077062627,-150.0,0.00016761,2]
[366127840,1750077062637,-563.17877796,0.00016762,2]
[366127841,1750077062647,-150.0,0.00016763,2]
[366127842,1750077062658,-200.0,0.00016765,2]
[366127843,1750077062672,-673.06473908,0.00016766,2]
[366127844,1750077062681,-300.0,0.00016766,2]
[366127845,1750077062691,-223.322793,0.00016767,2]
[366127846,1750077062702,-151.0,0.00016767,2]
[366127847,1750077062712,-207.69185,0.00016767,2]
[366127848,1750077062721,-151.0,0.00016767,2]
[366127849,1750077062731,-151.0,0.00016767,2]
[366127850,1750077062743,-151.0,0.00016767,2]
[366127851,1750077062752,-153.362934,0.00016767,2]
[366127852,1750077062762,-222.037601,0.00016767,2]
[366127853,1750077062772,-222.037601,0.00016767,2]
[366127854,1750077062782,-151.0,0.00016767,2]
[366127855,1750077062792,-151.0,0.00016767,2]
[366127856,1750077062802,-151.0,0.00016767,2]
[366127857,1750077062812,-151.0,0.00016767,2]
[366127858,1750077062822,-151.0,0.00016767,2]
[366127859,1750077062831,-151.527042,0.00016767,2]
[366127860,1750077062841,-151.0,0.00016767,2]
[366127861,1750077062850,-151.0,0.00016767,2]
[366127862,1750077062860,-262.102193,0.00016767,2]
[366127863,1750077062869,-151.0,0.00016767,2]
[366127864,1750077062879,-151.154166,0.00016767,2]
[366127865,1750077062888,-253.101498,0.00016767,2]
[366127866,1750077062898,-151.0,0.00016767,2]
[366127867,1750077062907,-152.930908,0.00016767,2]
[366127868,1750077062916,-151.0,0.00016767,2]
[366127869,1750077062926,-151.0,0.00016767,2]
[366127870,1750077062936,-253.101498,0.00016767,2]
[366127871,1750077062946,-151.0,0.00016767,2]
[366127872,1750077062955,-151.0,0.00016767,2]
[366127873,1750077062967,-151.0,0.00016767,2]
[366127874,1750077062976,-151.0,0.00016767,2]
[366127875,1750077062985,-151.178491,0.00016767,2]
[366127876,1750077062995,-151.0,0.00016767,2]
[366127877,1750077063004,-151.0,0.00016767,2]
[366127878,1750077063014,-151.0,0.00016767,2]
[366127879,1750077063023,-151.0,0.00016767,2]
[366127880,1750077063033,-151.0,0.00016767,2]
[366127881,1750077063043,-198.810832,0.00016767,2]
[366127882,1750077063054,-198.810832,0.00016767,2]
[366127883,1750077063064,-151.0,0.00016767,2]
[366127884,1750077063074,-151.0,0.00016767,2]
[366127885,1750077063084,-198.810832,0.00016767,2]
[366127886,1750077063093,-198.810832,0.00016767,2]
[366127887,1750077063103,-151.0,0.00016767,2]
[366127888,1750077063113,-151.416514,0.00016767,2]
[366127889,1750077063123,-195.129635,0.00016767,2]
[366127890,1750077063133,-195.129635,0.00016767,2]
[366127891,1750077063142,-195.129635,0.00016767,2]
[366127892,1750077063153,-195.129635,0.00016767,2]
[366127893,1750077063163,-151.0,0.00016767,2]
[366127894,1750077063172,-291.48554,0.00016767,2]
[366127895,1750077063181,-151.0,0.00016767,2]
[366127896,1750077063192,-151.0,0.00016767,2]
[366127897,1750077063202,-151.0,0.00016767,2]
[366127898,1750077063214,-151.0,0.00016767,2]
[366127899,1750077063224,-151.0,0.00016767,2]
[366127900,1750077063234,-151.0,0.00016767,2]
[366127901,1750077063244,-151.0,0.00016767,2]
[366127902,1750077063254,-151.0,0.00016767,2]
[366127903,1750077063263,-151.0,0.00016767,2]
[366127904,1750077063273,-151.0,0.00016767,2]
[366127905,1750077063282,-151.0,0.00016767,2]
[366127906,1750077063291,-151.0,0.00016767,2]
[366127907,1750077063301,-205.806729,0.00016767,2]
[366127908,1750077063312,-754.44998,0.00016767,2]
[366127909,1750077063322,-754.44998,0.00016767,2]
[366127910,1750077063332,-754.44998,0.00016767,2]
[366127911,1750077063342,-754.44998,0.00016767,2]
[366127912,1750077063352,-589.454762,0.00016767,2]
[366127913,1750077063362,-589.454762,0.00016767,2]
[366127914,1750077063372,-589.454762,0.00016767,2]
[366127915,1750077063382,-589.454762,0.00016767,2]
[366127916,1750077063392,-151.0,0.00016767,2]
[366127917,1750077063402,-151.0,0.00016767,2]
[366127918,1750077063411,-323.556172,0.00016767,2]
[366127919,1750077063421,-323.556172,0.00016767,2]
[366127920,1750077063431,-222.307538,0.00016767,2]
[366127921,1750077063440,-222.307538,0.00016767,2]
[366127922,1750077063450,-323.556172,0.00016767,2]
[366127923,1750077063460,-323.556172,0.00016767,2]
[366127924,1750077063471,-222.307538,0.00016767,2]
[366127925,1750077063481,-222.307538,0.00016767,2]
[366127926,1750077063491,-151.922812,0.00016767,2]
[366127927,1750077063500,-216.938169,0.00016767,2]
[366127928,1750077063510,-216.938169,0.00016767,2]
[366127929,1750077063519,-151.0,0.00016767,2]
[366127930,1750077063529,-151.0,0.00016767,2]
[366127931,1750077063538,-151.0,0.00016767,2]
[366127932,1750077063548,-151.0,0.00016767,2]
[366127933,1750077063557,-151.0,0.00016767,2]
[366127934,1750077063566,-151.0,0.00016767,2]
[366127935,1750077063576,-151.0,0.00016767,2]
[366127936,1750077063585,-203.214288,0.00016767,2]
[366127937,1750077063595,-160.114818,0.00016767,2]
[366127938,1750077063604,-160.114818,0.00016767,2]
[366127939,1750077063613,-151.0,0.00016767,2]
[366127940,1750077063623,-151.0,0.00016767,2]
[366127941,1750077063631,-160.114818,0.00016767,2]
[366127942,1750077063641,-151.0,0.00016767,2]
[366127943,1750077063650,-160.114818,0.00016767,2]
[366127944,1750077063662,-151.0,0.00016767,2]
[366127945,1750077063673,-151.0,0.00016767,2]
[366127946,1750077063683,-151.0,0.00016767,2]
[366127947,1750077063693,-151.0,0.00016767,2]
[366127948,1750077063702,-151.0,0.00016767,2]
[366127949,1750077063713,-151.0,0.00016767,2]
[366127950,1750077063723,-157.606675,0.00016767,2]
[366127951,1750077063732,-253.727265,0.00016767,2]
[366127952,1750077063742,-253.727265,0.00016767,2]
[366127953,1750077063752,-253.727265,0.00016767,2]
[366127954,1750077063762,-253.727265,0.00016767,2]
[366127955,1750077063771,-151.0,0.00016767,2]
[366127956,1750077063781,-151.0,0.00016767,2]
[366127957,1750077063790,-193.624345,0.00016767,2]
[366127958,1750077063800,-193.624345,0.00016767,2]
[366127959,1750077063812,-193.624345,0.00016767,2]
[366127960,1750077063821,-193.624345,0.00016767,2]
[366127961,1750077063831,-151.0,0.00016767,2]
[366127962,1750077063841,-151.0,0.00016767,2]
[366127963,1750077063851,-1727.863496,0.00016767,2]
[366127964,1750077063861,-1727.863496,0.00016767,2]
[366127965,1750077063871,-1727.863496,0.00016767,2]
[366127966,1750077063880,-231.466191,0.00016767,2]
[366127967,1750077063891,-1727.863496,0.00016767,2]
[366127968,1750077063901,-231.466191,0.00016767,2]
[366127969,1750077063911,-317.20892,0.00016767,2]
[366127970,1750077063920,-317.20892,0.00016767,2]
[366127971,1750077063930,-317.20892,0.00016767,2]
[366127972,1750077063940,-317.20892,0.00016767,2]
[366127973,1750077063950,-151.0,0.00016767,2]
[366127974,1750077063960,-151.0,0.00016767,2]
[366127975,1750077063970,-177.50768796,0.00016767,2]
[366127976,1750077063980,-667.05,0.00016767,2]
[366127977,1750077063990,-151.0,0.00016767,2]
[366127978,1750077064000,-490.0,0.00016767,2]
[366127979,1750077064009,-151.0,0.00016767,2]
[366127980,1750077064019,-151.0,0.00016767,2]
[366127981,1750077064029,-151.0,0.00016767,2]
[366127982,1750077064040,-490.0,0.00016767,2]
[366127983,1750077064228,-490.0,0.00016767,2]
[366127984,1750077064239,-501.248759,0.00016767,2]
[366127985,1750077064249,-200.0,0.00016767,2]
[366127986,1750077064259,-501.248759,0.00016767,2]
[366127987,1750077064270,-490.0,0.00016767,2]
[366127988,1750077064280,-490.0,0.00016767,2]
[366127989,1750077064290,-490.0,0.00016767,2]
[366127990,1750077064300,-151.0,0.00016767,2]
[366127991,1750077064310,-490.0,0.00016767,2]
[366127992,1750077064320,-213.696789,0.00016767,2]
[366127993,1750077064330,-213.696789,0.00016767,2]
[366127994,1750077064340,-490.0,0.00016767,2]
[366127995,1750077064350,-490.0,0.00016767,2]
[366127996,1750077064361,-490.0,0.00016767,2]
[366127997,1750077064371,-151.0,0.00016767,2]
[366127998,1750077064381,-213.696789,0.00016767,2]
[366127999,1750077064390,-213.696789,0.00016767,2]
[366128000,1750077064401,-490.0,0.00016767,2]
[366128001,1750077064411,-490.0,0.00016767,2]
[366128002,1750077064421,-490.77245717,0.00016767,2]
[366128003,1750077064431,-490.0,0.00016767,2]
[366128004,1750077064441,-490.0,0.00016767,2]
[366128005,1750077064451,-490.0,0.00016767,2]
[366128006,1750077064462,-490.0,0.00016767,2]
[366128007,1750077064473,-633.32358558,0.00016767,2]
[366128008,1750077064483,-501.64,0.00016767,2]
[366128009,1750077064492,-507.23,0.00016767,2]
[366128010,1750077064503,-490.0,0.00016767,2]
[366128011,1750077064512,-600.23,0.00016767,2]
[366128012,1750077064523,-490.0,0.00016767,2]
[366128013,1750077064535,-490.0,0.00016767,2]
[366128014,1750077064546,-538.58,0.00016767,2]
[366128015,1750077064556,-272.647939,0.00016767,2]
[366128016,1750077064566,-272.647939,0.00016767,2]
[366128017,1750077064576,-490.0,0.00016767,2]
[366128018,1750077064586,-151.0,0.00016767,2]
[366128019,1750077064596,-151.0,0.00016767,2]
[366128020,1750077064607,-1213.69,0.00016767,2]
[366128021,1750077064616,-490.0,0.00016767,2]
[366128022,1750077064627,-490.0,0.00016767,2]
[366128023,1750077064637,-272.647939,0.00016767,2]
[366128024,1750077064647,-272.647939,0.00016767,2]
[366128025,1750077064656,-151.0,0.00016767,2]
[366128026,1750077064672,-250.0,0.00016767,2]
[366128027,1750077064682,-151.0,0.00016767,2]
[366128028,1750077064692,-831.801902,0.00016767,2]
[366128029,1750077064703,-831.801902,0.00016767,2]
[366128030,1750077064714,-151.0,0.00016767,2]
[366128031,1750077064723,-151.0,0.00016767,2]
[366128032,1750077064734,-490.0,0.00016767,2]
[366128033,1750077064745,-831.801902,0.00016767,2]
[366128034,1750077064755,-161.550075,0.00016767,2]
[366128035,1750077064765,-831.801902,0.00016767,2]
[366128036,1750077064775,-490.0,0.00016767,2]
[366128037,1750077064785,-490.0,0.00016767,2]
[366128038,1750077064795,-490.0,0.00016767,2]
[366128039,1750077064805,-490.0,0.00016767,2]
[366128040,1750077064815,-646.48,0.00016767,2]
[366128041,1750077064825,-490.0,0.00016767,2]
[366128042,1750077064835,-550.81,0.00016767,2]
[366128043,1750077064845,-490.0,0.00016767,2]
[366128044,1750077064855,-490.0,0.00016767,2]
[366128045,1750077064865,-490.0,0.00016767,2]
[366128046,1750077064876,-151.0,0.00016767,2]
[366128047,1750077064886,-153.068112,0.00016767,2]
[366128048,1750077064896,-535.01,0.00016767,2]
[366128049,1750077064905,-151.0,0.00016767,2]
[366128050,1750077064915,-254.08113285,0.00016767,2]
[366128051,1750077064926,-151.0,0.00016767,2]
[366128052,1750077064936,-490.0,0.00016767,2]
[366128053,1750077064946,-490.0,0.00016767,2]
[366128054,1750077064956,-151.0,0.00016767,2]
[366128055,1750077064967,-151.0,0.00016767,2]
[366128056,1750077064977,-151.0,0.00016767,2]
[366128057,1750077064988,-151.0,0.00016767,2]
[366128058,1750077064998,-490.0,0.00016767,2]
[366128059,1750077065008,-151.0,0.00016767,2]
[366128060,1750077065017,-151.0,0.00016767,2]
[366128061,1750077065027,-490.0,0.00016767,2]
[366128062,1750077065037,-538.27,0.00016767,2]
[366128063,1750077065047,-490.0,0.00016767,2]
[366128064,1750077065057,-592.5,0.00016767,2]
[366128065,1750077065067,-151.0,0.00016767,2]
[366128066,1750077065076,-541.58,0.00016767,2]
[366128067,1750077065086,-151.0,0.00016767,2]
[366128068,1750077065095,-151.0,0.00016767,2]
[366128069,1750077065105,-550.7,0.00016767,2]
[366128070,1750077065116,-490.0,0.00016767,2]
[366128071,1750077065126,-490.0,0.00016767,2]
[366128072,1750077065136,-490.0,0.00016767,2]
[366128073,1750077065146,-490.0,0.00016767,2]
[366128074,1750077065156,-490.0,0.00016767,2]
[366128075,1750077065166,-490.0,0.00016767,2]
[366128076,1750077065175,-184.051259,0.00016767,2]
[366128077,1750077065185,-184.051259,0.00016767,2]
[366128078,1750077065195,-490.0,0.00016767,2]
[366128079,1750077065205,-184.051259,0.00016767,2]
[366128080,1750077065216,-184.051259,0.00016767,2]
[366128081,1750077065227,-490.0,0.00016767,2]
[366128082,1750077065240,-490.0,0.00016767,2]
[366128083,1750077065251,-490.0,0.00016767,2]
[366128084,1750077065264,-451.2024598,0.00016767,2]
[366128085,1750077065274,-490.0,0.00016767,2]
[366128086,1750077065284,-490.0,0.00016767,2]
[366128087,1750077065294,-612.11,0.00016767,2]
[366128088,1750077065305,-490.0,0.00016767,2]
[366128089,1750077065315,-490.0,0.00016767,2]
[366128090,1750077065325,-151.0,0.00016767,2]
[366128091,1750077065335,-151.0,0.00016767,2]
[366128092,1750077065346,-367.238878,0.00016767,2]
[366128093,1750077065356,-367.238878,0.00016767,2]
[366128094,1750077065366,-479.0,0.00016767,2]
[366128095,1750077065376,-490.0,0.00016767,2]
[366128096,1750077065386,-490.0,0.00016767,2]
[366128097,1750077065396,-490.0,0.00016767,2]
[366128098,1750077065407,-492.54,0.00016767,2]
[366128099,1750077065416,-490.0,0.00016767,2]
[366128100,1750077065426,-490.0,0.00016767,2]
[366128101,1750077065437,-490.0,0.00016767,2]
[366128102,1750077065447,-490.0,0.00016767,2]
[366128103,1750077065457,-151.0,0.00016767,2]
[366128104,1750077065469,-490.0,0.00016767,2]
[366128105,1750077065478,-490.0,0.00016767,2]
[366128106,1750077065488,-490.0,0.00016767,2]
[366128107,1750077065498,-490.0,0.00016767,2]
[366128108,1750077065509,-490.0,0.00016767,2]
[366128109,1750077065519,-490.0,0.00016767,2]
[366128110,1750077065529,-895.36,0.00016767,2]
[366128111,1750077065540,-490.0,0.00016767,2]
[366128112,1750077065550,-490.0,0.00016767,2]
[366128113,1750077065562,-780.24,0.00016767,2]
[366128114,1750077065572,-1016.69,0.00016767,2]
[366128115,1750077065582,-490.0,0.00016767,2]
[366128116,1750077065592,-490.0,0.00016767,2]
[366128117,1750077065603,-490.0,0.00016767,2]
[366128118,1750077065613,-490.0,0.00016767,2]
[366128119,1750077065623,-542.76,0.00016767,2]
[366128120,1750077065633,-490.0,0.00016767,2]
[366128121,1750077065643,-502.38,0.00016767,2]
[366128122,1750077065653,-490.0,0.00016767,2]
[366128123,1750077065665,-490.0,0.00016767,2]
[366128124,1750077065676,-490.0,0.00016767,2]
[366128125,1750077065686,-530.26,0.00016767,2]
[366128126,1750077065697,-409.16927831,0.00016767,2]
[366128127,1750077065707,-490.0,0.00016767,2]
[366128128,1750077065717,-490.0,0.00016767,2]
[366128129,1750077065728,-517.65,0.00016767,2]
[366128130,1750077065738,-506.86804404,0.00016767,2]
[366128131,1750077065749,-151.0,0.00016767,2]
[366128132,1750077065760,-563.09,0.00016767,2]
[366128133,1750077065769,-511.32,0.00016767,2]
[366128134,1750077065779,-200.0,0.00016767,2]
[366128135,1750077065789,-151.0,0.00016767,2]
[366128136,1750077065799,-490.0,0.00016767,2]
[366128137,1750077065809,-490.0,0.00016767,2]
[366128138,1750077065819,-490.0,0.00016767,2]
[366128139,1750077065828,-581.5,0.00016767,2]
[366128140,1750077065838,-490.0,0.00016767,2]
[366128141,1750077065848,-690.022743,0.00016767,2]
[366128142,1750077065858,-543.74,0.00016767,2]
[366128143,1750077065868,-1103.62,0.00016767,2]
[366128144,1750077065878,-690.022743,0.00016767,2]
[366128145,1750077065888,-490.0,0.00016767,2]
[366128146,1750077065897,-490.0,0.00016767,2]
[366128147,1750077065908,-383.036141,0.00016767,2]
[366128148,1750077065918,-663.4,0.00016767,2]
[366128149,1750077065928,-383.036141,0.00016767,2]
[366128150,1750077065938,-490.0,0.00016767,2]
[366128151,1750077065948,-383.036141,0.00016767,2]
[366128152,1750077065958,-490.0,0.00016767,2]
[366128153,1750077065970,-383.036141,0.00016767,2]
[366128154,1750077065979,-995.29,0.00016767,2]
[366128155,1750077065990,-490.0,0.00016767,2]
[366128156,1750077065999,-490.0,0.00016767,2]
[366128157,1750077066009,-490.0,0.00016767,2]
[366128158,1750077066019,-522.86,0.00016767,2]
[366128159,1750077066029,-490.0,0.00016767,2]
[366128160,1750077066039,-490.0,0.00016767,2]
[366128161,1750077066050,-1180.54,0.00016767,2]
[366128162,1750077066060,-490.0,0.00016767,2]
[366128163,1750077066069,-490.0,0.00016767,2]
[366128164,1750077066079,-954.97,0.00016767,2]
[366128165,1750077066089,-1046.55,0.00016767,2]
[366128166,1750077066100,-937.15,0.00016767,2]
[366128167,1750077066110,-490.0,0.00016767,2]
[366128168,1750077066121,-356.43569014,0.00016767,2]
[366128169,1750077066130,-490.0,0.00016767,2]
[366128170,1750077066140,-490.0,0.00016767,2]
[366128171,1750077066150,-490.0,0.00016767,2]
[366128172,1750077066160,-576.54,0.00016767,2]
[366128173,1750077066170,-490.0,0.00016767,2]
[366128174,1750077066182,-490.0,0.00016767,2]
[366128175,1750077066192,-1118.09,0.00016767,2]
[366128176,1750077066201,-490.0,0.00016767,2]
[366128177,1750077066211,-585.24,0.00016767,2]
[366128178,1750077066222,-490.0,0.00016767,2]
[366128179,1750077066232,-490.0,0.00016767,2]
[366128180,1750077066242,-723.1,0.00016767,2]
[366128181,1750077066252,-490.0,0.00016767,2]
[366128182,1750077066262,-490.0,0.00016767,2]
[366128183,1750077066272,-490.0,0.00016767,2]
[366128184,1750077066283,-904.15,0.00016767,2]
[366128185,1750077066293,-584.41,0.00016767,2]
[366128186,1750077066303,-983.79,0.00016767,2]
[366128187,1750077066314,-490.0,0.00016767,2]
[366128188,1750077066324,-494.56,0.00016767,2]
[366128189,1750077066334,-490.0,0.00016767,2]
[366128190,1750077066344,-490.0,0.00016767,2]
[366128191,1750077066353,-490.0,0.00016767,2]
[366128192,1750077066363,-490.0,0.00016767,2]
[366128193,1750077066373,-1035.12,0.00016767,2]
[366128194,1750077066383,-828.27,0.00016767,2]
[366128195,1750077066393,-542.5,0.00016767,2]
[366128196,1750077066403,-557.52,0.00016767,2]
[366128197,1750077066413,-490.0,0.00016767,2]
[366128198,1750077066423,-490.0,0.00016767,2]
[366128199,1750077066433,-490.0,0.00016767,2]
[366128200,1750077066443,-678.43,0.00016767,2]
[366128201,1750077066452,-1225.76,0.00016767,2]
[366128202,1750077066463,-1050.14,0.00016767,2]
[366128203,1750077066819,-900.46,0.00016767,2]
[366128204,1750077066830,-151.0,0.00016767,2]
[366128205,1750077066840,-490.0,0.00016767,2]
[366128206,1750077066850,-976.95,0.00016767,2]
[366128207,1750077066860,-151.0,0.00016767,2]
[366128208,1750077066869,-645.71,0.00016767,2]
[366128209,1750077066879,-490.0,0.00016767,2]
[366128210,1750077066888,-490.0,0.00016767,2]
[366128211,1750077066898,-570.2,0.00016767,2]
[366128212,1750077066907,-511.75,0.00016767,2]
[366128213,1750077066916,-490.0,0.00016767,2]
[366128214,1750077066926,-1048.43,0.00016767,2]
[366128215,1750077066936,-687.88,0.00016767,2]
[366128216,1750077066946,-500.38,0.00016767,2]
[366128217,1750077066957,-604.85,0.00016767,2]
[366128218,1750077066968,-1142.02,0.00016767,2]
[366128219,1750077066979,-1236.53,0.00016767,2]
[366128220,1750077066989,-490.0,0.00016767,2]
[366128221,1750077066999,-490.0,0.00016767,2]
[366128222,1750077067009,-490.0,0.00016767,2]
[366128223,1750077067019,-955.407299,0.00016767,2]
[366128224,1750077067029,-718.4,0.00016767,2]
[366128225,1750077067039,-1094.32,0.00016767,2]
[366128226,1750077067049,-955.407299,0.00016767,2]
[366128227,1750077067059,-490.0,0.00016767,2]
[366128228,1750077067069,-1086.93,0.00016767,2]
[366128229,1750077067079,-198.639818,0.00016767,2]
[366128230,1750077067089,-198.639818,0.00016767,2]
[366128231,1750077067099,-490.0,0.00016767,2]
[366128232,1750077067109,-1293.13,0.00016767,2]
[366128233,1750077067120,-490.0,0.00016767,2]
[366128234,1750077067130,-490.0,0.00016767,2]
[366128235,1750077067140,-198.639818,0.00016767,2]
[366128236,1750077067149,-198.639818,0.00016767,2]
[366128237,1750077067159,-518.68661,0.00016767,2]
[366128238,1750077067170,-1091.36,0.00016767,2]
[366128239,1750077067179,-490.0,0.00016767,2]
[366128240,1750077067189,-490.0,0.00016767,2]
[366128241,1750077067200,-797.31,0.00016767,2]
[366128242,1750077067210,-875.68,0.00016767,2]
[366128243,1750077067221,-498.54,0.00016767,2]
[366128244,1750077067231,-518.68661,0.00016767,2]
[366128245,1750077067241,-560.24,0.00016767,2]
[366128246,1750077067251,-598.74,0.00016767,2]
[366128247,1750077067261,-733.57,0.00016767,2]
[366128248,1750077067270,-913.42,0.00016767,2]
[366128249,1750077067281,-1111.79,0.00016767,2]
[366128250,1750077067291,-151.0,0.00016767,2]
[366128251,1750077067300,-641.2,0.00016767,2]
[366128252,1750077067310,-527.1,0.00016767,2]
[366128253,1750077067320,-151.0,0.00016767,2]
[366128254,1750077067331,-490.0,0.00016767,2]
[366128255,1750077067341,-490.0,0.00016767,2]
[366128256,1750077067350,-490.0,0.00016767,2]
[366128257,1750077067361,-490.0,0.00016767,2]
[366128258,1750077067371,-490.0,0.00016767,2]
[366128259,1750077067381,-539.16579855,0.00016767,2]
[366128260,1750077067391,-151.0,0.00016767,2]
[366128261,1750077067403,-595.141465,0.00016767,2]